bitfinex-derivatives/quotes_BNBF0:USTF0_20241225
["timestamp","ask_amount","ask_price","bid_price","bid_amount"]
[1735123137015,1.818,710.4,709.96,0.779]
[1735123145528,1.818,710.4,710.02,1.03949626]
[1735123146428,1.818,710.4,709.96,0.779]
[1735123146429,1.818,710.4,710.03,1.03949626]
[1735123147529,1.818,710.4,710.01,1.03949626]
[1735123148727,1.818,710.4,709.96,1.81849626]
[1735123149630,1.818,710.4,709.97,1.03949626]
[1735123150328,1.818,710.4,709.96,0.779]
[1735123154033,1.818,710.4,710.04,1.03949626]
[1735123154833,1.818,710.4,710.05,1.03949626]
[1735123156029,1.818,710.4,710.06,1.03949626]
[1735123157035,1.818,710.4,710.13,1.03949626]
[1735123158232,1.818,710.4,710.11,1.03949626]
[1735123158828,1.818,710.4,710.12,0.691]
[1735123159029,1.818,710.4,710.12,1.73049626]
[1735123159735,1.818,710.4,710.12,0.691]
[1735123175238,1.818,710.4,710.22,1.03949626]
[1735123176539,1.818,710.4,710.3,1.03949626]
[1735123176741,0.63697717,711.74,710.3,1.03949626]
[1735123177040,0.25867758,711.73,710.3,1.03949626]
[1735123177240,0.28101333,711.71,710.3,1.03949626]
[1735123177940,0.25867758,711.7,710.3,1.03949626]
[1735123178136,1.94901333,711.71,710.3,1.03949626]
[1735123178137,0.25867758,711.69,710.3,1.03949626]
[1735123178335,0.25867758,711.7,710.3,1.03949626]
[1735123178540,0.25867758,711.69,710.3,1.03949626]
[1735123178841,0.25867758,711.68,710.35,1.03949626]
[1735123179035,0.25867758,711.67,710.35,1.03949626]
[1735123179235,0.25867758,711.66,710.35,1.03949626]
[1735123179439,0.25867758,711.65,710.35,1.03949626]
[1735123179642,0.25867758,711.64,710.35,1.03949626]
[1735123179941,0.25867758,711.63,710.42,1.03949626]
[1735123180135,0.25867758,711.62,710.42,1.03949626]
[1735123180334,0.5397304,711.61,710.42,1.03949626]
[1735123180542,0.25867758,711.6,710.42,1.03949626]
[1735123181335,0.25861186,711.59,710.41,1.03949626]
[1735123181540,0.25861186,711.58,710.41,1.03949626]
[1735123181736,0.28105282,711.61,710.41,1.03949626]
[1735123181737,0.25861186,711.57,710.41,1.03949626]
[1735123181941,0.25861186,711.56,710.41,1.03949626]
[1735123182141,0.28105282,711.61,710.41,1.03949626]
[1735123182340,0.25860738,711.6,710.46,1.03949626]
[1735123183545,0.25860738,711.6,710.33,1.03949626]
[1735123183740,0.28106072,711.59,710.33,1.03949626]
[1735123183945,0.25860738,711.58,710.33,1.03949626]
[1735123184243,0.25865863,711.57,710.33,1.03949626]
[1735123184444,0.25865863,711.56,710.28,1.03949626]
[1735123184645,0.25865863,711.55,710.28,1.03949626]
[1735123184841,0.25865863,711.54,710.28,1.03949626]
[1735123185046,0.25867129,711.53,710.28,1.03949626]
[1735123185244,0.28108837,711.52,710.28,1.03949626]
[1735123185448,0.25867129,711.51,710.28,1.03949626]
[1735123185648,0.25867129,711.51,710.12,0.691]
[1735123186946,0.25867628,711.5,710.08,1.03949626]
[1735123187250,0.25867628,711.49,710.08,1.03949626]
[1735123187444,0.25867628,711.48,710.08,1.03949626]
[1735123187651,0.25867628,711.47,710.08,1.03949626]
[1735123187851,0.25867628,711.46,710.11,1.03949626]
[1735123188053,0.25867628,711.45,710.12,0.808]
[1735123188249,0.25867628,711.44,710.12,0.808]
[1735123188548,0.53980021,711.43,710.12,0.808]
[1735123188745,0.25867962,711.42,710.12,0.808]
[1735123189146,0.28112393,711.43,710.12,0.808]
[1735123190652,0.28112393,711.43,710.36,1.03949626]
[1735123191857,0.28112393,711.43,710.49,1.03949626]
[1735123192952,0.28112393,711.43,710.42,1.03949626]
[1735123193755,0.28112393,711.43,710.41,1.03949626]
[1735123195152,1.668,711.71,710.41,1.03949626]
[1735123195357,0.25852956,711.7,710.41,1.03949626]
[1735123195557,1.668,711.71,710.41,1.03949626]
[1735123196261,1.668,711.71,710.38,1.03949626]
[1735123197764,1.668,711.71,710.41,1.03949626]
[1735123200063,1.668,711.71,710.42,1.03949626]
[1735123200761,1.668,711.71,710.12,0.808]
[1735123200972,0.28101728,711.7,710.12,0.808]
[1735123202366,0.98901728,711.7,710.12,0.808]
[1735123203366,1.84001728,711.7,710.12,0.808]
[1735123204463,1.84001728,711.7,710.13,1.03949626]
[1735123205167,1.84001728,711.7,710.16,1.03949626]
[1735123206468,1.84001728,711.7,710.21,1.03949626]
[1735123207367,1.84001728,711.7,710.29,1.03949626]
[1735123209970,1.84001728,711.7,710.22,1.03949626]
[1735123211069,1.84001728,711.7,710.16,1.03949626]
[1735123211969,1.84001728,711.7,710.2,1.03949626]
[1735123212769,1.84001728,711.7,710.21,1.03949626]
[1735123213268,1.84001728,711.7,710.22,0.887]
[1735123217171,0.25854422,711.69,710.22,0.887]
[1735123218266,0.98901728,711.7,710.22,0.887]
[1735123218472,0.25854341,711.69,710.32,1.03949626]
[1735123219465,1.92801728,711.7,710.32,1.03949626]
[1735123220867,1.92801728,711.7,710.38,1.03949626]
[1735123221773,1.92801728,711.7,710.41,1.03949626]
[1735123222874,1.92801728,711.7,710.47,1.03949626]
[1735123224173,1.92801728,711.7,710.22,0.887]
[1735123224174,1.92801728,711.7,710.65,1.03949626]
[1735123225168,1.92801728,711.7,710.78,1.03949626]
[1735123226070,1.92801728,711.7,710.79,1.03949626]
[1735123227174,1.92801728,711.7,710.81,1.03949626]
[1735123228171,1.92801728,711.7,710.42,1.03949626]
[1735123228172,1.92801728,711.7,710.8,1.03949626]
[1735123229174,1.92801728,711.7,710.73,1.03949626]
[1735123231574,1.92801728,711.7,710.85,1.03949626]
[1735123232570,1.92801728,711.7,710.9,1.03949626]
[1735123233474,1.92801728,711.7,710.88,1.03949626]
[1735123234272,1.92801728,711.7,710.74,0.892]
[1735123235778,1.92801728,711.7,710.82,1.0382114]
[1735123236275,1.647,711.7,710.82,1.0382114]
[1735123236778,1.647,711.7,710.81,1.0382114]
[1735123237572,1.647,711.7,710.84,1.0382114]
[1735123238272,1.647,711.7,710.85,1.0382114]
[1735123239573,1.647,711.7,710.86,1.0382114]
[1735123241074,1.647,711.7,710.93,1.0382114]
[1735123241971,1.647,711.7,711.02,1.0382114]
[1735123243177,1.647,711.7,710.97,1.0382114]
[1735123244096,1.647,711.7,710.79,1.0382114]
[1735123244980,1.647,711.7,710.74,0.892]
[1735123250585,1.647,711.7,710.71,1.0382114]
[1735123251888,1.647,711.7,710.73,1.0382114]
[1735123253091,1.647,711.7,710.77,1.0382114]
[1735123254087,1.647,711.7,710.75,1.0382114]
[1735123255892,1.647,711.7,710.77,1.0382114]
[1735123257189,1.647,711.7,710.8,1.0382114]
[1735123257995,1.647,711.7,711.04,1.0382114]
[1735123259197,1.647,711.7,711.06,1.0382114]
[1735123260299,1.647,711.7,711.08,1.0382114]
[1735123261100,1.647,711.7,711.05,1.0382114]
[1735123262298,1.647,711.7,710.82,1.0382114]
[1735123262299,1.647,711.7,711.06,1.0382114]
[1735123263198,1.647,711.7,710.73,0.75514268]
[1735123263199,1.647,711.7,711.13,1.0382114]
[1735123263898,1.647,711.7,711.14,0.891]
[1735123264394,1.647,711.7,711.15,1.0382114]
[1735123265495,1.647,711.7,711.27,1.0382114]
[1735123266396,1.647,711.7,711.14,0.891]
[1735123267500,1.647,711.7,711.15,1.0382114]
[1735123268393,1.647,711.7,711.17,1.0382114]
[1735123269496,1.647,711.7,711.14,0.891]
[1735123274994,1.647,711.7,711.27,1.0382114]
[1735123278204,1.647,711.7,711.14,0.891]
[1735123278205,1.647,711.7,711.26,1.0382114]
[1735123278906,1.647,711.7,711.14,0.891]
[1735123279908,1.647,711.7,711.22,1.03862428]
[1735123280813,1.647,711.7,711.17,1.03862428]
[1735123282707,1.647,711.7,711.14,0.891]
[1735123283910,1.647,711.7,711.15,1.03862428]
[1735123284811,1.647,711.7,711.14,0.891]
[1735123287010,1.647,711.7,711.12,1.03862428]
[1735123288004,1.647,711.7,710.16,2.12052458]
[1735123288005,1.647,711.7,711.13,1.03862428]
[1735123288205,1.647,711.7,711.13,1.92962428]
[1735123289108,1.647,711.7,711.14,1.03862428]
[1735123290211,1.647,711.7,711.13,0.891]
[1735123309230,1.647,711.7,710.59,1.03862428]
[1735123310231,1.647,711.7,710.68,1.03862428]
[1735123311127,1.647,711.7,710.6,0.892]
[1735123311128,1.647,711.7,710.66,1.03862428]
[1735123312532,1.647,711.7,710.6,0.892]
[1735123316334,1.647,711.7,710.61,0.28144833]
[1735123316534,1.647,711.7,710.9,1.03862428]
[1735123317433,1.647,711.7,710.91,1.03862428]
[1735123318337,1.647,711.7,710.89,1.03862428]
[1735123319337,1.647,711.7,710.62,0.75798085]
[1735123319338,1.647,711.7,710.95,1.03862428]
[1735123320539,1.647,711.7,710.61,0.28144833]
[1735123320540,1.647,711.7,710.85,1.03862428]
[1735123321639,1.647,711.7,710.84,1.03862428]
[1735123322641,1.647,711.7,710.85,1.03862428]
[1735123323539,1.647,711.7,710.78,1.03862428]
[1735123324542,1.647,711.7,710.8,1.03862428]
[1735123325745,1.647,711.7,710.85,1.03862428]
[1735123326440,1.647,711.7,710.86,0.806]
[1735123326940,1.647,711.7,710.94,1.03862428]
[1735123328048,1.647,711.7,710.86,0.806]
[1735123329046,1.647,711.7,710.89,1.03862428]
[1735123331246,1.647,711.7,710.92,1.03862428]
[1735123332049,1.647,711.7,710.9,1.03862428]
[1735123332951,1.647,711.7,710.92,1.03862428]
[1735123333850,1.647,711.7,710.86,0.806]
[1735123333851,1.647,711.7,710.88,1.03862428]
[1735123335151,1.647,711.7,710.87,1.03862428]
[1735123338354,1.647,711.7,710.86,0.806]
[1735123343658,1.647,711.7,710.99,1.03862428]
[1735123344756,1.647,711.7,710.86,0.806]
[1735123344757,1.647,711.7,711.01,1.03862428]
[1735123345957,1.647,711.7,710.86,0.806]
[1735123345958,1.647,711.7,711.0,1.03862428]
[1735123347459,1.647,711.7,710.98,1.03862428]
[1735123347756,1.647,711.7,710.99,0.667]
[1735123348555,1.647,711.7,711.03,1.03862428]
[1735123350863,1.647,711.7,711.04,1.03862428]
[1735123352264,1.647,711.7,711.03,1.03862428]
[1735123354165,1.647,711.7,711.05,1.03862428]
[1735123355264,1.647,711.7,711.04,1.03862428]
[1735123355966,1.647,711.7,711.07,1.03862428]
[1735123356864,1.647,711.7,711.03,1.03862428]
[1735123359364,1.647,711.7,711.04,1.03862428]
[1735123360264,1.647,711.7,711.06,1.03862428]
[1735123361668,1.647,711.7,711.13,1.03862428]
[1735123362662,1.647,711.7,711.08,1.03862428]
[1735123363768,1.647,711.7,711.09,1.03862428]
[1735123364867,1.647,711.7,711.1,1.03862428]
[1735123365667,1.647,711.7,711.11,1.03862428]
[1735123366863,1.647,711.7,711.06,1.03862428]
[1735123367872,1.647,711.7,711.06,1.92962428]
[1735123368170,1.647,711.7,711.06,0.891]
[1735123374570,1.647,711.7,711.07,1.03862428]
[1735123377273,1.647,711.7,711.06,1.92962428]
[1735123378375,1.647,711.7,711.08,1.03862428]
[1735123379279,1.647,711.7,711.06,1.92962428]
[1735123380082,1.647,711.7,711.06,0.891]
[1735123388595,1.647,711.7,711.08,1.03862428]
[1735123390492,1.647,711.7,711.06,0.891]
[1735123391593,1.647,711.7,711.06,1.92962428]
[1735123392499,1.647,711.7,711.08,1.03862428]
[1735123393599,1.647,711.7,711.06,0.891]
[1735123401706,1.647,711.7,711.12,1.03862428]
[1735123402810,1.647,711.7,711.1,1.03862428]
[1735123403101,1.647,711.7,711.11,0.704]
[1735123404108,1.647,711.7,711.11,1.74226242]
[1735123404900,1.647,711.7,711.15,1.03826242]
[1735123405908,1.647,711.7,711.13,1.03826242]
[1735123406910,1.647,711.7,711.11,0.704]
[1735123425118,1.647,711.7,710.94,1.03826242]
[1735123425815,1.647,711.7,710.61,0.28144833]
[1735123425816,1.647,711.7,710.93,1.03826242]
[1735123426315,1.647,711.7,710.93,1.92926242]
[1735123426814,1.647,711.7,710.95,1.03826242]
[1735123427922,1.647,711.7,710.93,1.92926242]
[1735123429019,1.647,711.7,710.93,0.891]
[1735123429812,1.647,711.7,710.97,1.03826242]
[1735123430620,1.647,711.7,710.94,1.03826242]
[1735123432719,1.647,711.7,710.93,0.891]
[1735123466149,1.647,711.7,710.94,1.03826242]
[1735123467451,1.647,711.7,710.91,1.03826242]
[1735123467650,1.647,711.7,710.95,0.891]
[1735123470548,1.647,711.7,710.96,1.03826242]
[1735123471752,1.647,711.7,710.95,0.891]
[1735123481865,0.28102123,711.69,710.95,0.891]
[1735123482058,0.25854764,711.68,710.95,0.891]
[1735123482259,0.28102123,711.69,710.95,0.891]
[1735123482458,0.25855308,711.68,710.95,0.891]
[1735123482662,0.28102912,711.67,710.95,0.891]
[1735123482865,0.25855308,711.66,710.95,0.891]
[1735123483268,0.28103702,711.65,710.95,0.891]
[1735123483660,0.25861005,711.64,710.95,0.891]
[1735123485268,0.28104492,711.63,710.95,0.891]
[1735123485463,0.25861005,711.62,710.95,0.891]
[1735123485660,0.28105282,711.61,710.95,0.891]
[1735123485863,0.25861005,711.6,710.95,0.891]
[1735123486068,0.28106072,711.59,710.95,0.891]
[1735123486265,0.25862478,711.58,710.95,0.891]
[1735123486462,0.28106862,711.57,710.95,0.891]
[1735123486662,0.25862478,711.56,710.95,0.891]
[1735123486862,0.53968692,711.55,710.95,0.891]
[1735123487063,0.2586104,711.54,710.95,0.891]
[1735123487666,0.28108442,711.53,710.95,0.891]
[1735123487868,0.2586104,711.52,710.95,0.891]
[1735123488168,0.28109232,711.51,710.95,0.891]
[1735123488367,0.2586104,711.5,710.95,0.891]
[1735123488667,0.28110022,711.49,710.95,0.891]
[1735123489065,0.25862804,711.48,710.95,0.891]
[1735123489466,0.28110812,711.47,710.95,0.891]
[1735123489663,0.25862804,711.46,710.95,0.891]
[1735123489868,0.28111603,711.45,710.95,0.891]
[1735123490168,0.25862804,711.44,710.95,0.891]
[1735123490371,0.28111603,711.45,710.95,0.891]
[1735123490769,0.25865778,711.44,710.95,0.891]
[1735123490965,0.28111603,711.45,710.95,0.891]
[1735123491269,0.28112393,711.43,710.95,0.891]
[1735123491468,0.25865729,711.42,710.95,0.891]
[1735123491669,0.28112393,711.43,710.95,0.891]
[1735123494471,0.28112393,711.43,709.62,1.03826242]
[1735123494867,0.28112393,711.43,709.55,1.03826242]
[1735123495672,0.25870399,711.42,709.55,1.03826242]
[1735123496272,0.25870399,711.42,709.52,1.03826242]
[1735123497068,0.28112393,711.43,709.52,1.03826242]
[1735123497272,0.28112393,711.43,708.79,1.24591491]
[1735123497273,0.25870112,711.42,709.5,1.03826242]
[1735123498572,0.25870112,711.42,709.48,1.03826242]
[1735123499367,0.25870112,711.42,709.47,1.03826242]
[1735123499968,0.25869445,711.41,709.47,1.03826242]
[1735123500167,0.25869445,711.4,709.47,1.03826242]
[1735123500368,0.28112393,711.43,709.47,1.03826242]
[1735123500969,0.28112393,711.43,709.17,1.03826242]
[1735123500970,0.28112393,711.43,709.5,1.03826242]
[1735123501467,0.25867873,711.42,709.5,1.03826242]
[1735123502273,0.25867873,711.42,709.56,1.03826242]
[1735123503376,0.25867873,711.42,709.49,0.28189262]
[1735123503377,0.25867873,711.42,709.59,1.03826242]
[1735123504480,0.25871184,711.41,709.59,1.03826242]
[1735123504676,0.25871184,711.4,709.57,1.03826242]
[1735123504871,0.25871184,711.39,709.57,1.03826242]
[1735123505076,0.25871184,711.38,709.57,1.03826242]
[1735123505271,0.25871184,711.37,709.57,1.03826242]
[1735123505476,0.25871184,711.36,709.57,1.03826242]
[1735123505679,0.25871184,711.35,709.62,1.03826242]
[1735123505978,0.25871184,711.34,709.62,1.03826242]
[1735123506179,0.25871184,711.33,709.62,1.03826242]
[1735123506381,0.28112393,711.43,709.6,1.03826242]
[1735123506382,0.25871184,711.32,709.6,1.03826242]
[1735123506581,0.25871184,711.31,709.6,1.03826242]
[1735123506775,0.25871184,711.3,709.6,1.03826242]
[1735123506976,0.25871184,711.29,709.6,1.03826242]
[1735123507283,0.25870873,711.28,709.6,1.03826242]
[1735123507482,0.25870873,711.27,709.6,1.03826242]
[1735123507781,0.25870873,711.26,709.59,1.03826242]
[1735123507981,0.25870873,711.25,709.59,1.03826242]
[1735123508181,0.25870873,711.24,709.59,1.03826242]
[1735123508378,0.25870873,711.23,709.59,1.03826242]
[1735123508582,0.25870873,711.22,709.59,1.03826242]
[1735123508783,0.25870873,711.21,709.67,1.03826242]
[1735123508980,0.25870873,711.2,709.67,1.03826242]
[1735123509175,0.25870873,711.42,709.67,1.03826242]
[1735123509380,0.25870873,711.41,709.67,1.03826242]
[1735123509586,0.25870873,711.4,709.68,1.03826242]
[1735123509778,0.25870873,711.39,709.68,1.03826242]
[1735123510084,0.25870631,711.38,709.68,1.03826242]
[1735123510284,0.25870631,711.37,709.68,1.03826242]
[1735123510485,0.25870631,711.36,709.68,1.03826242]
[1735123510686,0.25870631,711.35,709.72,1.03826242]
[1735123510882,0.25870631,711.34,709.72,1.03826242]
[1735123511083,0.25870631,711.33,709.72,1.03826242]
[1735123511282,0.25870631,711.32,709.72,1.03826242]
[1735123511481,0.25870631,711.31,709.72,1.03826242]
[1735123511685,0.25870631,711.3,709.71,1.03826242]
[1735123511882,0.28112393,711.43,709.71,1.03826242]
[1735123511883,0.25870631,711.29,709.71,1.03826242]
[1735123512085,0.25870631,711.28,709.71,1.03826242]
[1735123512286,0.25870631,711.27,709.71,1.03826242]
[1735123512488,0.25870631,711.26,709.71,1.03826242]
[1735123512681,0.28112393,711.43,709.71,1.03826242]
[1735123512887,0.25870524,711.42,709.71,1.03826242]
[1735123513184,0.25870524,711.42,709.78,1.03826242]
[1735123513385,2.05570524,711.42,709.78,1.03826242]
[1735123513582,0.25869265,711.41,709.78,1.03826242]
[1735123514790,0.25869265,711.41,709.86,1.03826242]
[1735123515486,0.25870501,711.4,709.86,1.03826242]
[1735123515687,0.25870501,711.4,709.61,1.03826242]
[1735123515688,0.25870501,711.39,709.9,1.03826242]
[1735123515883,0.25870501,711.38,709.9,1.03826242]
[1735123516087,0.25870501,711.37,709.9,1.03826242]
[1735123516282,0.25870501,711.36,709.9,1.03826242]
[1735123516481,0.25870501,711.35,709.9,1.03826242]
[1735123516684,0.25870501,711.34,709.9,1.03826242]
[1735123516888,0.25870501,711.33,709.96,1.03826242]
[1735123517093,0.25870501,711.32,709.96,1.03826242]
[1735123517392,0.25870501,711.31,709.96,1.03826242]
[1735123517692,0.25870501,711.3,709.98,1.03826242]
[1735123517884,0.25870501,711.29,709.98,1.03826242]
[1735123518089,1.797,711.42,709.98,1.03826242]
[1735123518285,0.25868775,711.41,709.98,1.03826242]
[1735123518491,0.25868775,711.41,710.05,1.03826242]
[1735123519695,0.25868775,711.41,710.06,1.03826242]
[1735123520493,0.25868775,711.41,710.04,1.03826242]
[1735123520788,1.797,711.42,710.04,1.03826242]
[1735123520986,0.2586907,711.41,710.04,1.03826242]
[1735123521190,0.2586907,711.41,709.63,1.03826242]
[1735123521191,0.2586907,711.41,710.03,1.03826242]
[1735123521692,0.25869207,711.4,710.03,1.03826242]
[1735123521894,0.25869207,711.39,710.03,1.03826242]
[1735123522194,0.25869207,711.38,710.08,1.03826242]
[1735123522394,0.25869207,711.37,710.08,1.03826242]
[1735123522594,0.25869207,711.36,710.08,1.03826242]
[1735123522796,0.25869207,711.35,710.08,1.03826242]
[1735123522995,0.25869207,711.34,710.08,1.03826242]
[1735123523196,0.25869207,711.33,710.12,1.03826242]
[1735123523496,0.25869207,711.32,710.12,1.03826242]
[1735123523695,0.25868786,711.31,710.12,1.03826242]
[1735123523998,1.797,711.42,710.12,1.03826242]
[1735123524296,0.25868377,711.41,710.14,1.03826242]
[1735123525198,0.25868377,711.41,710.17,1.03826242]
[1735123526101,0.25868377,711.41,710.2,1.03826242]
[1735123526498,0.25869131,711.4,710.2,1.03826242]
[1735123526701,0.25869131,711.39,710.2,1.03826242]
[1735123526901,0.25869131,711.38,710.2,1.03826242]
[1735123527101,0.25869131,711.37,710.27,1.03826242]
[1735123527301,0.25869131,711.36,710.27,1.03826242]
[1735123527497,0.25869131,711.35,710.27,1.03826242]
[1735123527696,0.25869131,711.34,710.27,1.03826242]
[1735123528800,0.28116345,711.33,710.27,1.03826242]
[1735123529003,0.25869131,711.32,710.27,1.03826242]
[1735123529203,0.25869131,711.32,710.24,1.03826242]
[1735123530506,0.25869131,711.32,710.25,1.03826242]
[1735123531306,0.28117135,711.31,710.26,1.03826242]
[1735123531606,0.25869131,711.3,710.26,1.03826242]
[1735123531905,0.28117926,711.29,710.26,1.03826242]
[1735123532600,0.25868409,711.28,710.26,1.03826242]
[1735123532805,0.25868409,711.28,710.28,1.03826242]
[1735123533206,0.28118717,711.27,710.28,1.03826242]
[1735123534008,0.25869006,711.26,710.28,1.03826242]
[1735123534411,0.28118717,711.27,710.28,1.03826242]
[1735123535812,0.28118717,711.27,709.63,2.11978578]
[1735123535813,0.28118717,711.27,710.22,1.03826242]
[1735123536610,0.28118717,711.27,710.2,1.03826242]
[1735123537613,0.28118717,711.27,710.23,1.03826242]
[1735123538716,0.28118717,711.27,710.24,1.03826242]
[1735123539515,0.28118717,711.27,710.21,1.03826242]
[1735123543817,1.30718717,711.27,710.17,1.03826242]
[1735123544621,2.46818717,711.27,710.17,1.03826242]
[1735123544916,2.46818717,711.27,709.29,2.11978578]
[1735123544917,2.46818717,711.27,710.19,1.03826242]
[1735123545716,2.46818717,711.27,710.22,1.03826242]
[1735123546920,2.46818717,711.27,710.19,1.03826242]
[1735123548116,2.46818717,711.27,710.21,1.03826242]
[1735123549119,2.46818717,711.27,710.18,1.03826242]
[1735123549923,2.46818717,711.27,710.19,1.03826242]
[1735123551121,2.46818717,711.27,710.23,1.03826242]
[1735123552318,2.46818717,711.27,710.15,1.03826242]
[1735123553223,2.46818717,711.27,710.14,1.03826242]
[1735123554219,2.46818717,711.27,710.13,1.03826242]
[1735123555324,2.46818717,711.27,710.07,1.03826242]
[1735123556327,2.46818717,711.27,710.1,1.03826242]
[1735123557329,2.46818717,711.27,709.09,2.11978578]
[1735123557330,2.46818717,711.27,710.12,1.03826242]
[1735123558230,2.46818717,711.27,710.18,1.03826242]
[1735123558929,2.46818717,711.27,710.2,1.03826242]
[1735123561333,2.46818717,711.27,710.17,1.03826242]
[1735123562331,0.25872762,711.26,710.17,1.03826242]
[1735123562536,0.25872762,711.26,710.11,1.03826242]
[1735123563336,0.25881214,711.25,710.11,1.03826242]
[1735123563531,0.25882185,711.24,710.02,1.03826242]
[1735123563727,0.25882185,711.23,710.02,1.03826242]
[1735123563928,0.911,711.24,710.02,1.03826242]
[1735123564329,0.25883054,711.23,710.02,1.03826242]
[1735123564730,0.25883054,711.23,709.61,1.03826242]
[1735123565732,0.25883054,711.23,709.51,1.03826242]
[1735123566735,0.25883054,711.23,709.42,1.03826242]
[1735123567435,0.25883054,711.22,709.42,1.03826242]
[1735123567629,0.911,711.24,709.11,1.03826242]
[1735123567630,0.25883054,711.21,709.48,1.03826242]
[1735123567830,0.25883054,711.2,709.48,1.03826242]
[1735123568035,0.25883054,711.19,709.48,1.03826242]
[1735123568235,0.25883054,711.18,709.48,1.03826242]
[1735123568436,0.25883054,711.17,709.48,1.03826242]
[1735123568735,0.25883054,711.16,709.47,1.03826242]
[1735123568934,0.25883054,711.15,709.47,1.03826242]
[1735123569134,0.25883054,711.14,709.47,1.03826242]
[1735123569330,0.25883054,711.13,709.47,1.03826242]
[1735123569635,0.25887089,711.12,709.44,1.03826242]
[1735123569830,0.911,711.24,709.44,1.03826242]
[1735123569831,0.25887089,711.11,709.44,1.03826242]
[1735123570037,0.25887089,711.1,709.44,1.03826242]
[1735123570335,0.25890969,711.09,709.28,1.03826242]
[1735123570535,0.25890969,711.08,709.28,1.03826242]
[1735123570730,0.25890969,711.07,709.28,1.03826242]
[1735123570934,0.25890969,711.06,709.28,1.03826242]
[1735123571232,0.25890969,711.05,709.28,1.03826242]
[1735123571431,0.785,711.13,709.16,1.03826242]
[1735123571432,0.25890969,711.04,709.16,1.03826242]
[1735123571636,0.25890969,711.03,709.16,1.03826242]
[1735123571836,0.785,711.13,709.16,1.03826242]
[1735123571837,0.25890969,711.02,709.16,1.03826242]
[1735123572034,0.25890969,711.01,709.16,1.03826242]
[1735123572232,0.25892383,711.0,709.16,1.03826242]
[1735123572429,0.25892383,710.99,709.16,1.03826242]
[1735123572634,0.25892383,710.98,709.12,1.03826242]
[1735123572837,0.25892383,710.97,709.12,1.32030213]
[1735123573031,0.25892383,710.96,709.12,1.32030213]
[1735123573336,0.25892383,710.95,709.12,1.32030213]
[1735123573536,0.25892383,710.94,709.12,1.32030213]
[1735123573738,0.25892383,710.93,709.12,0.28203971]
[1735123574037,0.25892383,710.92,709.12,0.28203971]
[1735123574236,0.25892383,710.91,709.12,0.28203971]
[1735123574535,0.25892383,710.9,709.12,0.28203971]
[1735123574735,0.25892383,710.89,709.12,0.28203971]
[1735123574936,0.25892383,711.12,709.12,0.28203971]
[1735123575135,0.25892383,711.11,709.12,0.28203971]
[1735123575336,0.25892383,711.1,709.12,0.28203971]
[1735123575536,0.25892383,711.09,709.12,0.28203971]
[1735123575736,0.25892383,711.08,709.12,0.28203971]
[1735123575934,0.25892383,711.07,709.12,0.28203971]
[1735123576136,0.25892383,711.06,709.12,0.28203971]
[1735123576331,0.25892383,711.05,709.12,0.28203971]
[1735123576535,0.25892383,711.04,709.12,0.28203971]
[1735123576731,0.25892383,711.03,709.12,0.28203971]
[1735123576936,0.25892383,711.02,709.12,0.28203971]
[1735123577235,0.25892383,711.01,709.12,0.28203971]
[1735123577432,0.25892383,711.02,709.12,0.28203971]
[1735123577635,0.25893928,711.0,709.12,0.28203971]
[1735123577831,0.25894111,710.99,709.12,0.28203971]
[1735123578539,0.25894111,710.98,709.12,0.28203971]
[1735123578841,0.25894111,710.97,709.12,0.28203971]
[1735123579039,0.25894111,711.02,709.12,0.28203971]
[1735123579240,0.25894111,711.01,709.12,0.28203971]
[1735123579435,0.25894111,711.02,709.12,0.28203971]
[1735123579640,0.25894111,711.01,709.12,0.28203971]
[1735123579938,0.25894111,711.0,709.12,0.28203971]
[1735123580140,0.25894111,710.99,709.12,0.28203971]
[1735123580339,0.25893767,710.98,709.12,0.28203971]
[1735123580537,0.25893767,711.02,709.12,0.28203971]
[1735123580845,0.25893767,711.01,709.12,0.28203971]
[1735123581037,0.25893767,711.0,709.12,0.28203971]
[1735123581238,0.25893767,710.99,709.12,0.28203971]
[1735123581438,0.25893767,710.98,709.12,0.28203971]
[1735123581639,0.25893767,710.97,709.12,0.28203971]
[1735123581940,0.25893767,710.96,709.12,0.28203971]
[1735123582239,0.25893767,710.95,709.12,0.28203971]
[1735123582438,0.25893767,710.94,709.12,0.28203971]
[1735123582736,0.25893767,710.93,709.12,0.28203971]
[1735123583039,0.25893864,710.92,709.12,0.28203971]